bitfinex/quotes_BTCUSD_20240727
["timestamp","ask_amount","ask_price","bid_price","bid_amount"]
[1722124551561,2.47030906,68162.0,68161.0,0.00052059]
[1722124552532,2.46877019,68162.0,68161.0,0.00052059]
[1722124554173,2.61902976,68162.0,68161.0,0.00052059]
[1722124554375,2.06784683,68162.0,68161.0,0.00052059]
[1722124554575,2.76243315,68162.0,68161.0,0.00052059]
[1722124554776,2.64679778,68162.0,68161.0,0.00052059]
[1722124554976,2.76243915,68162.0,68161.0,0.00016525]
[1722124555197,2.76243915,68162.0,68161.0,7.534e-05]
[1722124555425,2.61595057,68162.0,68161.0,7.534e-05]
[1722124555736,2.61217815,68162.0,68161.0,7.534e-05]
[1722124556065,2.465691,68162.0,68161.0,7.534e-05]
[1722124556310,2.48871984,68162.0,68161.0,7.534e-05]
[1722124556486,2.48865997,68162.0,68161.0,7.534e-05]
[1722124556692,2.63515176,68162.0,68161.0,7.534e-05]
[1722124557176,2.48865997,68162.0,68161.0,7.534e-05]
[1722124557416,2.46563113,68162.0,68161.0,7.534e-05]
[1722124557636,2.20221974,68162.0,68161.0,7.534e-05]
[1722124557929,2.46261409,68162.0,68161.0,7.534e-05]
[1722124558080,2.61287366,68162.0,68161.0,7.534e-05]
[1722124560412,1.047991,68152.0,68151.0,0.002]
[1722124560616,1.64069575,68152.0,68151.0,0.002]
[1722124560860,1.90693701,68152.0,68151.0,0.002]
[1722124561636,2.14170601,68152.0,68151.0,0.003]
[1722124561847,2.14170601,68152.0,68131.0,0.002]
[1722124561848,0.1427,68149.0,68131.0,0.002]
[1722124562046,0.578551,68133.0,68131.0,0.002]
[1722124562388,2.21560384,68133.0,68131.0,0.002]
[1722124562506,2.09103697,68133.0,68131.0,0.002]
[1722124562706,1.48270776,68133.0,68131.0,0.002]
[1722124562912,1.51933609,68133.0,68131.0,0.002]
[1722124563113,1.14996861,68133.0,68131.0,0.002]
[1722124563322,1.06965789,68133.0,68132.0,0.0644]
[1722124563540,1.25239329,68133.0,68132.0,0.0644]
[1722124563740,0.67930829,68133.0,68132.0,0.0644]
[1722124563963,0.62421291,68133.0,68132.0,0.0644]
[1722124564178,1.51302054,68133.0,68132.0,0.0001]
[1722124564403,1.77653294,68133.0,68132.0,0.0001]
[1722124564715,1.66800639,68133.0,68132.0,0.0001]
[1722124564950,1.75480361,68133.0,68132.0,0.0001]
[1722124565152,1.75283954,68133.0,68132.0,0.0001]
[1722124565474,1.67405209,68133.0,68132.0,0.0001]
[1722124565674,2.05158609,68133.0,68132.0,0.0001]
[1722124565917,2.08955285,68133.0,68132.0,0.0001]
[1722124566585,2.17631285,68133.0,68132.0,0.0001]
[1722124566810,2.07955285,68133.0,68132.0,0.0001]
[1722124567009,2.18799766,68133.0,68132.0,0.0001]
[1722124567211,2.09355285,68133.0,68132.0,0.0001]
[1722124567419,2.07955285,68133.0,68132.0,0.0001]
[1722124567827,2.09155285,68133.0,68132.0,0.0001]
[1722124568749,0.821933,68132.0,68131.0,0.002]
[1722124568951,1.30094672,68132.0,68131.0,0.002]
[1722124569107,1.8248367,68132.0,68131.0,0.002]
[1722124569513,1.71643782,68132.0,68131.0,0.002]
[1722124569898,1.30667464,68132.0,68131.0,0.002]
[1722124570098,1.71695979,68132.0,68131.0,0.002]
[1722124570489,1.80365187,68132.0,68131.0,0.002]
[1722124570626,1.71695979,68132.0,68131.0,0.002]
[1722124570967,2.02799779,68132.0,68131.0,0.002]
[1722124571185,2.03899779,68132.0,68131.0,0.002]
[1722124571557,2.23849779,68132.0,68131.0,0.002]
[1722124571778,0.260136,68122.0,68121.0,0.002]
[1722124571981,1.71721066,68122.0,68121.0,0.002]
[1722124572180,2.21565686,68122.0,68121.0,0.002]
[1722124572410,2.31557971,68122.0,68121.0,0.002]
[1722124572794,2.31569916,68122.0,68121.0,0.002]
[1722124573532,2.31569916,68122.0,68078.0,0.45077872]
[1722124573533,0.193703,68083.0,68078.0,0.45077872]
[1722124573742,1.42790072,68083.0,68078.0,0.45077872]
[1722124573945,2.11692935,68083.0,68077.0,0.0154213]
[1722124574170,2.27814988,68083.0,68077.0,0.0154213]
[1722124574362,2.30114988,68083.0,68077.0,0.0154213]
[1722124574658,2.34436656,68083.0,68077.0,0.0154213]
[1722124574857,2.14192935,68083.0,68077.0,0.0154213]
[1722124575300,2.157766,68083.0,68077.0,0.0154213]
[1722124575707,2.32400329,68083.0,68077.0,0.0154213]
[1722124575880,2.32200329,68083.0,68077.0,0.0154213]
[1722124576227,2.155766,68083.0,68077.0,0.0154213]
[1722124577266,2.169766,68083.0,68077.0,0.0154213]
[1722124578234,2.16922735,68083.0,68077.0,0.0154213]
[1722124578658,1.057545,68082.0,68077.0,0.0154213]
[1722124578834,1.5619934,68082.0,68077.0,0.0154213]
[1722124579278,1.68948817,68082.0,68077.0,0.0154213]
[1722124579457,1.51112314,68082.0,68077.0,0.0154213]
[1722124580022,1.56199311,68082.0,68077.0,0.0154213]
[1722124580220,1.51112314,68082.0,68077.0,0.0154213]
[1722124580377,1.56199311,68082.0,68077.0,0.0154213]
[1722124580581,1.51512314,68082.0,68077.0,0.0154213]
[1722124580963,1.56599311,68082.0,68077.0,0.0154213]
[1722124581161,1.51512314,68082.0,68077.0,0.0154213]
[1722124581364,1.56598848,68082.0,68077.0,0.0154213]
[1722124581569,1.51512184,68082.0,68077.0,0.0154213]
[1722124581781,1.5151202,68082.0,68077.0,0.0154213]
[1722124582583,2.1130691,68082.0,68077.0,0.0154213]
[1722124583641,2.1000691,68082.0,68077.0,0.0154213]
[1722124584437,0.007086,68081.0,68077.0,0.0154213]
[1722124584745,0.73781957,68078.0,68077.0,0.0154213]
[1722124584905,1.78377574,68078.0,68077.0,0.0154213]
[1722124585124,1.43146351,68078.0,68077.0,0.0154213]
[1722124585280,1.30400747,68078.0,68077.0,0.0154213]
[1722124585477,1.43149586,68078.0,68077.0,0.0154213]
[1722124585673,1.15153506,68078.0,68077.0,0.0154213]
[1722124586279,1.65589379,68078.0,68077.0,0.0154213]
[1722124586970,1.66989379,68078.0,68077.0,0.0154213]
[1722124587180,1.69289379,68078.0,68077.0,0.0154213]
[1722124587381,1.67889379,68078.0,68077.0,0.0154213]
[1722124587580,1.6924414,68078.0,68077.0,0.0144213]
[1722124588130,1.6784414,68078.0,68077.0,0.0144213]
[1722124588336,1.98870097,68078.0,68077.0,0.0144213]
[1722124588477,2.00270097,68078.0,68077.0,0.0144213]
[1722124589698,1.98870097,68078.0,68077.0,0.0144213]
[1722124590689,2.00268974,68078.0,68077.0,0.0144213]
[1722124591376,1.85243017,68078.0,68077.0,0.0144213]
[1722124592755,1.76943017,68078.0,68077.0,0.0144213]
[1722124592983,1.78385117,68078.0,68077.0,0.0144213]
[1722124593673,1.48384555,68078.0,68077.0,0.0144213]
[1722124593881,1.78373055,68078.0,68077.0,0.0144213]
[1722124595002,1.76930955,68078.0,68077.0,0.0144213]
[1722124595483,1.54870655,68078.0,68077.0,0.0144213]
[1722124595738,1.53428555,68078.0,68077.0,0.0144213]
[1722124596759,1.23440055,68078.0,68077.0,0.0144213]
[1722124597082,1.53382188,68078.0,68077.0,0.0144213]
[1722124597441,1.69402145,68078.0,68077.0,0.0144213]
[1722124597862,1.68408145,68078.0,68077.0,0.0144213]
[1722124598032,1.53382188,68078.0,68077.0,0.0144213]
[1722124598254,1.92934067,68078.0,68077.0,0.0144213]
[1722124600197,1.92934137,68078.0,68077.0,0.0144213]
[1722124600668,1.92936359,68078.0,68077.0,0.0144213]
[1722124602425,1.92935232,68078.0,68077.0,0.0144213]
[1722124602925,1.92935232,68078.0,68077.0,0.00200271]
[1722124603406,1.92943808,68078.0,68077.0,0.00200271]
[1722124604131,0.2091,68076.0,68071.0,0.002]
[1722124604357,0.587612,68072.0,68071.0,0.002]
[1722124604607,1.33973031,68072.0,68071.0,0.002]
[1722124604829,1.58047579,68072.0,68071.0,0.002]
[1722124605556,1.57534524,68072.0,68071.0,0.002]
[1722124606439,1.2758265,68072.0,68071.0,0.002]
[1722124606665,1.57402538,68072.0,68071.0,0.002]
[1722124606904,1.58702538,68072.0,68071.0,0.002]
[1722124608108,1.58702538,68072.0,68071.0,0.002924]
[1722124608355,1.58602538,68072.0,68071.0,0.002924]
[1722124609493,1.58502538,68072.0,68071.0,0.002924]
[1722124609996,1.2868265,68072.0,68071.0,0.002924]
[1722124610221,1.5850486,68072.0,68071.0,0.002924]
[1722124611533,1.60810658,68072.0,68071.0,0.002924]
[1722124612364,1.85836615,68072.0,68071.0,0.002924]
[1722124612706,1.8784474,68072.0,68071.0,0.002924]
[1722124612927,0.822692,68069.0,68068.0,0.0016571]
[1722124613130,1.88310579,68069.0,68068.0,0.0016571]
[1722124613541,1.92528829,68069.0,68068.0,0.0016571]
[1722124613741,1.88210579,68069.0,68068.0,0.0016571]
[1722124613947,1.64705079,68069.0,68068.0,0.0016571]
[1722124614861,1.43795079,68069.0,68068.0,0.0016571]
[1722124615057,1.43695079,68069.0,68068.0,0.0016571]
[1722124615260,1.45095079,68069.0,68068.0,0.0016571]
[1722124615691,1.44473098,68069.0,68068.0,0.0016571]
[1722124615916,1.49707037,68069.0,68068.0,0.0016571]
[1722124616129,1.49707037,68069.0,68039.0,9e-05]
[1722124616130,0.587785,68052.0,68039.0,9e-05]
[1722124616329,1.32720529,68052.0,68039.0,9e-05]
[1722124616529,1.32720529,68052.0,68048.0,0.0666]
[1722124616530,0.86235256,68052.0,68048.0,0.0666]
[1722124617109,0.74479556,68052.0,68048.0,0.0666]
[1722124617508,0.78815955,68052.0,68048.0,0.0666]
[1722124617713,0.74479556,68052.0,68048.0,0.0666]
[1722124618349,0.74879556,68052.0,68048.0,0.0666]
[1722124618554,0.45684429,68052.0,68048.0,0.0666]
[1722124618762,0.74484794,68052.0,68048.0,0.0666]
[1722124619350,0.75334988,68052.0,68048.0,0.0666]
[1722124619845,0.75334988,68052.0,68045.0,0.0816]
[1722124620072,0.74434988,68052.0,68045.0,0.0816]
[1722124620320,0.74434988,68052.0,68043.0,0.008]
[1722124620544,0.86190688,68052.0,68043.0,0.008]
[1722124620797,1.09702088,68052.0,68043.0,0.008]
[1722124621056,1.45674473,68052.0,68043.0,0.008]
[1722124621276,1.73150155,68052.0,68043.0,0.008]
[1722124621523,1.49638755,68052.0,68043.0,0.008]
[1722124621772,1.48538755,68052.0,68043.0,0.008]
[1722124622021,1.30075863,68052.0,68043.0,0.008]
[1722124622265,1.02329516,68052.0,68043.0,0.008]
[1722124622515,1.01329516,68052.0,68043.0,0.008]
[1722124622752,1.13085216,68052.0,68043.0,0.008]
[1722124622980,1.14400499,68052.0,68043.0,0.008]
[1722124623686,0.91328379,68052.0,68043.0,0.008]
[1722124623946,0.43819786,68052.0,68047.0,0.0666]
[1722124624174,0.43819786,68052.0,68047.0,0.184164]
[1722124624175,0.80043837,68052.0,68047.0,0.184164]
[1722124624381,0.46449758,68052.0,68051.0,0.119558]
[1722124624584,0.41039024,68052.0,68051.0,0.354675]
[1722124624789,0.24109914,68052.0,68051.0,0.589792]
[1722124625006,0.23009914,68052.0,68051.0,0.589792]
[1722124625203,0.24009914,68052.0,68051.0,0.589792]
[1722124625344,0.24009914,68052.0,68051.0,0.737992]
[1722124625909,0.23009914,68052.0,68051.0,0.973109]
[1722124626208,0.23409914,68052.0,68051.0,0.973109]
[1722124626517,0.23409914,68052.0,68051.0,0.737992]
[1722124626974,0.23408035,68052.0,68051.0,0.737992]
[1722124627370,0.25714156,68052.0,68051.0,0.737992]
[1722124627932,0.23408035,68052.0,68051.0,0.737992]
[1722124628338,0.27749667,68052.0,68051.0,0.737992]
[1722124628576,0.23408035,68052.0,68051.0,0.737992]
[1722124628799,0.29920978,68052.0,68051.0,0.737992]
[1722124628996,0.23408035,68052.0,68051.0,0.737992]
[1722124629371,0.23408364,68052.0,68051.0,0.737992]
[1722124629576,0.32091629,68052.0,68051.0,0.737992]
[1722124629776,0.32091629,68052.0,68051.0,0.656392]
[1722124629996,0.1119558,68052.0,68051.0,0.656392]
[1722124630359,0.22870587,68052.0,68051.0,0.656392]
[1722124630719,0.23378236,68052.0,68051.0,0.656392]
[1722124631260,0.25684342,68052.0,68051.0,0.656392]
[1722124631460,0.23378236,68052.0,68051.0,0.656392]
[1722124631686,0.23378236,68052.0,68051.0,0.891509]
[1722124631885,0.23378236,68052.0,68051.0,0.656392]
[1722124631886,0.11165702,68052.0,68051.0,0.656392]
[1722124632060,0.29897423,68052.0,68051.0,0.891509]
[1722124633314,0.23378643,68052.0,68051.0,0.656392]
[1722124633721,0.23378643,68052.0,68051.0,0.891509]
[1722124634139,0.23378643,68052.0,68051.0,0.973109]
[1722124634358,0.22870994,68052.0,68051.0,0.973109]
[1722124634566,0.23378738,68052.0,68051.0,0.973109]
[1722124634763,0.22978738,68052.0,68051.0,0.973109]
[1722124634918,0.25284777,68052.0,68051.0,0.973109]
[1722124635127,0.23078738,68052.0,68051.0,0.973109]
[1722124635550,0.22978738,68052.0,68051.0,0.973109]
[1722124635786,0.23078738,68052.0,68051.0,0.973109]
[1722124635973,0.10865797,68052.0,68051.0,0.973109]
[1722124636189,0.10358053,68052.0,68051.0,0.973109]
[1722124636333,0.10258053,68052.0,68051.0,0.973109]
[1722124636538,0.12211346,68056.0,68055.0,0.82286]
[1722124636740,0.1364151,68056.0,68055.0,0.82286]
[1722124637068,0.12211372,68056.0,68055.0,0.82286]
[1722124637258,0.25852882,68056.0,68055.0,1.057963]
[1722124637790,0.28158891,68056.0,68055.0,1.056963]
[1722124638687,0.28258583,68056.0,68055.0,1.056963]
[1722124638991,0.25952574,68056.0,68055.0,1.056963]
[1722124641208,0.25952574,68056.0,68055.0,1.292066]
[1722124641209,0.1374151,68056.0,68055.0,1.292066]
[1722124641411,0.001,68056.0,68055.0,1.428466]
[1722124641610,0.001,68056.0,68055.0,1.193363]
[1722124641813,0.001,68056.0,68055.0,1.17030363]
[1722124642300,0.001,68056.0,68055.0,1.40540663]
[1722124645053,0.02405862,68056.0,68055.0,1.40540663]
[1722124645457,0.001,68056.0,68055.0,1.40540663]
[1722124648705,0.02405857,68056.0,68055.0,1.40540663]
[1722124648903,0.02405857,68056.0,68055.0,1.42243227]
[1722124649879,0.001,68056.0,68055.0,1.42243227]
[1722124653074,0.02405857,68056.0,68055.0,1.42243227]
[1722124653261,0.001,68056.0,68055.0,1.42243227]
[1722124654688,0.001,68056.0,68043.0,0.008]
[1722124654689,0.352732,68040.0,68031.0,0.002]
[1722124654894,0.92271285,68040.0,68031.0,0.002]
[1722124655094,1.70470575,68040.0,68031.0,0.002]
[1722124655320,1.3665589,68040.0,68031.0,0.002]
[1722124655524,1.35935158,68040.0,68031.0,0.002]
[1722124655733,1.00661958,68040.0,68031.0,0.002]
[1722124655949,1.27445615,68040.0,68031.0,0.002]
[1722124656155,1.27445615,68040.0,68031.0,0.119592]
[1722124656363,1.532683,68040.0,68031.0,0.002]
[1722124656566,1.297528,68040.0,68031.0,0.002]
[1722124656768,1.179951,68040.0,68031.0,0.002]
[1722124657186,1.297528,68040.0,68031.0,0.002]
[1722124657410,1.20732202,68040.0,68031.0,0.002]
[1722124657631,1.315647,68040.0,68031.0,0.002]
[1722124657847,0.9445701,68040.0,68031.0,0.002]
[1722124658064,0.75984746,68040.0,68031.0,0.002]
[1722124658249,1.3344036,68040.0,68031.0,0.002]
[1722124658672,1.06213677,68040.0,68031.0,0.002]
[1722124659005,1.33710038,68040.0,68031.0,0.002]
[1722124659191,1.07613677,68040.0,68031.0,0.002]
[1722124659641,1.03348882,68040.0,68031.0,0.002]
[1722124660242,1.26864382,68040.0,68031.0,0.002]
[1722124660449,0.117581,68038.0,68031.0,0.002]
[1722124660653,0.12340016,68032.0,68031.0,0.002]
[1722124660848,0.46366989,68032.0,68031.0,0.002]
[1722124661019,0.46870975,68032.0,68031.0,0.002]
[1722124661210,0.46871337,68032.0,68031.0,0.002]
[1722124661801,0.61031337,68032.0,68031.0,0.002]
[1722124661995,0.0792,68031.0,68021.0,0.002]
[1722124662245,0.15025957,68023.0,68021.0,0.002]
[1722124662447,0.15025957,68023.0,68012.0,0.009097]
[1722124662448,1.27713347,68022.0,68012.0,0.004097]
[1722124662749,1.27713347,68022.0,68001.0,0.012]
[1722124662750,0.0792,68012.0,68001.0,0.012]
[1722124662885,0.94134947,68002.0,68001.0,0.012]
[1722124663083,1.40937464,68002.0,68001.0,0.012]
[1722124663287,1.49966416,68002.0,68001.0,0.012]
[1722124663545,1.25834216,68002.0,68001.0,0.012]
[1722124663749,1.36065363,68002.0,68001.0,0.012]
[1722124663998,1.49182409,68002.0,68001.0,0.012]
[1722124664170,1.70372231,68002.0,68001.0,0.012]
[1722124664370,1.55667545,68002.0,68001.0,0.012]
[1722124664574,1.18763991,68002.0,68001.0,0.012]
[1722124664790,0.98958343,68002.0,68001.0,0.012]
[1722124665113,0.63665343,68002.0,68001.0,0.012]
[1722124665252,0.41900704,68002.0,68001.0,0.01191]
[1722124665656,0.16914909,68002.0,68001.0,0.01191]
[1722124666278,0.19222957,68002.0,68001.0,0.01191]
[1722124666475,0.17822957,68002.0,68001.0,0.01191]
[1722124666674,0.17822957,68002.0,68001.0,0.129555]
[1722124666900,0.17822957,68002.0,68001.0,0.01191]
[1722124667790,0.15514909,68002.0,68001.0,0.01191]
[1722124667977,0.17823041,68002.0,68001.0,0.01191]
[1722124668429,0.43747341,68002.0,68001.0,0.01191]
[1722124668628,0.43747341,68002.0,67999.0,0.059097]
[1722124668629,0.965129,68000.0,67999.0,0.059097]
[1722124668974,0.965129,68000.0,67970.0,0.009108]
[1722124668975,0.72998,67983.0,67970.0,0.009108]
[1722124669145,0.913277,67972.0,67970.0,0.009108]
[1722124669384,0.913277,67972.0,67951.0,0.002]
[1722124669385,0.58865,67952.0,67951.0,0.002]
[1722124669561,0.83910006,67972.0,67932.0,0.009108]
[1722124669562,0.353211,67948.0,67932.0,0.009108]
[1722124669782,0.1,67948.0,67934.0,0.235522]
[1722124670096,0.1,67948.0,67932.0,0.009108]
[1722124670097,0.71889151,67948.0,67932.0,0.009108]
[1722124670323,0.36568051,67948.0,67932.0,0.009108]
[1722124670512,0.71389151,67948.0,67932.0,0.009108]
[1722124670668,0.24294351,67948.0,67932.0,0.244635]
[1722124670888,0.47841751,67948.0,67932.0,0.009108]
[1722124671081,0.2890462,67948.0,67932.0,0.009108]
[1722124671304,0.2660462,67948.0,67933.0,0.235524]
[1722124671505,0.2660462,67948.0,67936.0,0.117756]
[1722124671722,0.2404462,67948.0,67933.0,0.235524]
[1722124671923,0.2404462,67948.0,67947.0,0.001014]
[1722124672123,0.39070577,67948.0,67947.0,0.001014]
[1722124672402,0.17796877,67948.0,67947.0,0.001014]
[1722124672729,0.0277092,67948.0,67947.0,0.118752]
[1722124672928,0.0277092,67948.0,67947.0,0.601781]
[1722124673102,0.02310269,67948.0,67947.0,0.886283]
[1722124676258,0.1177,67969.0,67962.0,0.117712]
[1722124676460,0.45077872,67963.0,67962.0,0.117712]
[1722124676675,0.15025957,67963.0,67962.0,0.353137]
[1722124676864,0.15517911,67963.0,67962.0,0.353137]
[1722124677069,0.15025957,67963.0,67962.0,0.353137]
[1722124677425,0.15025957,67963.0,67947.0,0.001014]
[1722124677426,0.652385,67948.0,67947.0,0.001014]
[1722124677586,0.94301286,67948.0,67947.0,0.001014]
[1722124677792,1.36343017,67948.0,67947.0,0.001014]
[1722124678779,1.28830038,67948.0,67947.0,0.001014]
[1722124679119,1.28830172,67948.0,67947.0,0.001014]
[1722124679335,1.05282772,67948.0,67947.0,0.001014]
[1722124679506,1.07593051,67948.0,67947.0,0.001014]
[1722124679710,1.31140451,67948.0,67947.0,0.001014]
[1722124680150,1.31040451,67948.0,67947.0,0.001014]
[1722124680575,1.28730172,67948.0,67947.0,0.001014]
[1722124681380,1.05496102,67948.0,67947.0,0.001014]
[1722124681571,1.1773013,67948.0,67947.0,0.001014]
[1722124681792,1.1543013,67948.0,67947.0,0.001014]
[1722124681935,0.8551273,67948.0,67947.0,0.001014]
[1722124682306,0.6196533,67948.0,67947.0,0.001014]
[1722124682469,1.0330273,67948.0,67947.0,0.001014]
[1722124682619,1.5039753,67948.0,67947.0,0.001014]
[1722124682824,1.2685013,67948.0,67947.0,0.001014]
[1722124683915,1.29160345,67948.0,67947.0,0.001014]
[1722124684342,1.47512142,67948.0,67947.0,0.001014]
[1722124684494,1.45202145,67948.0,67947.0,0.001014]
[1722124686892,1.03864745,67948.0,67947.0,0.001014]
[1722124687088,0.85513032,67948.0,67947.0,0.001014]
[1722124687289,0.73278702,67948.0,67947.0,0.001014]
[1722124687494,0.61964199,67948.0,67947.0,0.001014]
[1722124688817,0.63064199,67948.0,67947.0,0.001014]
[1722124689019,0.86611599,67948.0,67947.0,0.001014]
[1722124689214,0.91696862,67948.0,67947.0,0.001014]
[1722124689419,0.91696862,67948.0,67947.0,0.118752]
[1722124689420,0.31066838,67948.0,67947.0,0.118752]
[1722124689627,0.12717142,67948.0,67947.0,0.354229]
[1722124689829,0.15026764,67948.0,67947.0,0.589706]
[1722124690262,0.14542519,67948.0,67947.0,0.589706]
[1722124690522,0.02309622,67948.0,67947.0,0.589706]
[1722124691055,0.117721,67957.0,67951.0,0.117731]
[1722124691175,0.117721,67957.0,67947.0,0.471968]
[1722124691176,0.32342821,67956.0,67947.0,0.236491]
[1722124691380,0.17725269,67955.0,67948.0,0.235472]
[1722124691579,0.05086442,67953.0,67952.0,0.11773]
[1722124691801,0.32750707,67953.0,67949.0,0.235468]
[1722124692081,0.27256379,67952.0,67951.0,0.117731]
[1722124692260,0.12230422,67952.0,67951.0,0.588657]
[1722124692477,0.12638455,67952.0,67951.0,0.588657]
[1722124693448,0.12638455,67952.0,67951.0,0.666757]
[1722124693671,0.00408033,67952.0,67951.0,0.96682]
[1722124693917,0.05087088,67957.0,67956.0,0.353169]
[1722124694136,0.17316095,67957.0,67956.0,0.588615]
[1722124694363,0.17316095,67957.0,67956.0,0.117723]
[1722124694364,0.3057252,67957.0,67956.0,0.117723]
[1722124694621,0.12229007,67957.0,67955.0,0.117724]
[1722124694848,0.45598477,67956.0,67951.0,0.1427]
[1722124695089,0.3057252,67955.0,67954.0,0.117726]
[1722124695308,0.46004997,67955.0,67954.0,0.117726]
[1722124695802,0.3097904,67955.0,67954.0,0.353179]
[1722124696034,0.3097904,67955.0,67954.0,0.588632]
[1722124696278,0.3097904,67955.0,67954.0,0.117726]
[1722124696524,0.3097904,67955.0,67953.0,0.117726]
[1722124696770,0.0040652,67955.0,67954.0,0.117726]
[1722124697016,0.0040652,67955.0,67952.0,0.11773]
[1722124697017,0.27256136,67955.0,67952.0,0.11773]
[1722124697252,0.46154178,67954.0,67953.0,0.353184]
[1722124697496,0.46006623,67954.0,67953.0,0.353184]
[1722124698139,0.30980666,67954.0,67953.0,0.824096]
[1722124698340,0.30980666,67954.0,67953.0,0.58864]
[1722124698516,0.30980666,67954.0,67953.0,0.824096]
[1722124698720,0.3329018,67954.0,67953.0,0.824096]
[1722124699879,0.00405219,67954.0,67953.0,0.824096]
[1722124700087,0.12633419,67954.0,67953.0,0.824096]
[1722124700262,0.122282,67954.0,67953.0,0.824096]
[1722124700467,0.07512979,67986.0,67953.0,0.15025957]
[1722124700729,0.05088815,67960.0,67953.0,0.15320202]
[1722124700896,0.12227237,67959.0,67958.0,0.117719]
[1722124701100,0.12227237,67959.0,67958.0,0.588597]
[1722124701305,0.1263354,67959.0,67958.0,0.824036]
[1722124701629,0.1263354,67959.0,67958.0,1.059475]
[1722124701630,0.12227237,67959.0,67958.0,1.059475]
[1722124702038,0.12227237,67959.0,67958.0,1.205975]
[1722124702235,0.12225997,67959.0,67958.0,0.38690957]
[1722124702390,0.05089836,67971.0,67958.0,0.38690957]
[1722124702592,0.117669,67987.0,67971.0,0.235394]
[1722124702825,0.68895645,67986.0,67980.0,0.11768]
[1722124703028,0.68895645,67986.0,67981.0,0.117679]
[1722124703029,0.41697178,67985.0,67981.0,0.117679]
[1722124703260,0.59436802,67984.0,67981.0,0.117679]
[1722124703432,0.41697178,67983.0,67979.0,0.235364]
[1722124703633,0.42101723,67982.0,67979.0,0.353046]
[1722124703863,0.42101723,67982.0,67972.0,0.23539]
[1722124703864,0.30522495,67981.0,67976.0,0.235374]
[1722124704231,0.117699,67970.0,67965.0,0.117706]
[1722124704451,0.30930685,67969.0,67961.0,0.235425]
[1722124704686,0.00084,67960.0,67959.0,0.824026]
[1722124704906,0.12309345,67960.0,67959.0,0.824026]
[1722124706186,0.12310601,67960.0,67959.0,0.824026]
[1722124706407,0.14619603,67960.0,67959.0,0.824026]
[1722124708114,0.14619603,67960.0,67959.0,0.822926]
[1722124709144,0.02393002,67960.0,67959.0,0.822926]
[1722124709891,0.14619978,67960.0,67959.0,0.822926]
[1722124710229,0.14619978,67960.0,67955.0,0.44638566]
[1722124710230,0.14619978,67960.0,67955.0,0.43249141]
[1722124710452,0.02393002,67960.0,67959.0,0.58859]
[1722124710641,0.14620961,67960.0,67959.0,0.58859]
[1722124710892,0.19710938,67960.0,67959.0,0.117718]
[1722124711096,0.17401936,67960.0,67959.0,0.117718]
[1722124711294,0.17808501,67960.0,67959.0,0.117718]
[1722124711509,0.17808501,67960.0,67959.0,0.353154]
[1722124711510,0.12718524,67960.0,67959.0,0.353154]
[1722124711662,0.35647916,67960.0,67955.0,0.43249141]
[1722124711860,0.117735,67949.0,67948.0,0.000924]
[1722124712059,0.96785278,67949.0,67948.0,0.000924]
[1722124712361,1.39106075,67949.0,67948.0,0.000924]
[1722124712942,1.53706999,67949.0,67948.0,0.000924]
[1722124713148,1.39106075,67949.0,67948.0,0.000924]
[1722124714066,1.39106075,67949.0,67948.0,0.00062167]
[1722124714458,1.56072252,67949.0,67948.0,0.00062167]
[1722124714626,1.41416024,67949.0,67948.0,0.00062167]
[1722124714826,1.41416296,67949.0,67948.0,0.00062167]
[1722124715212,1.39106347,67949.0,67948.0,0.00062167]
[1722124715415,1.41415803,67949.0,67948.0,0.00062167]
[1722124718466,1.23065669,67949.0,67948.0,0.00062167]
[1722124718634,1.41416318,67949.0,67948.0,0.00062167]
[1722124718981,1.41416371,67949.0,67948.0,0.00062167]
[1722124719396,1.3910643,67949.0,67948.0,0.00062167]
[1722124720822,1.39106097,67949.0,67948.0,0.00062167]
[1722124721044,1.15559097,67949.0,67948.0,0.00062167]
[1722124721648,1.15558798,67949.0,67948.0,0.00062167]
[1722124722188,0.92011798,67949.0,67948.0,0.00062167]
[1722124722407,0.78746525,67949.0,67948.0,0.00062167]
[1722124722602,0.50114702,67949.0,67948.0,0.00062167]
[1722124722802,0.50114702,67949.0,67945.0,0.117741]
[1722124722803,0.2998732,67949.0,67945.0,0.117741]
[1722124723034,0.27259354,67948.0,67945.0,0.117741]
[1722124723240,0.12233397,67947.0,67943.0,0.23549]
[1722124723446,0.12233397,67947.0,67946.0,0.353221]
[1722124723682,0.235451,67955.0,67943.0,0.235491]
[1722124723683,0.12233397,67948.0,67943.0,0.235491]
[1722124723911,0.23546,67953.0,67945.0,0.117741]
[1722124723912,0.12650155,67947.0,67945.0,0.117741]
[1722124724179,0.12233397,67946.0,67945.0,0.353226]
[1722124724573,0.12650085,67946.0,67945.0,0.353226]
[1722124724810,0.00416688,67946.0,67945.0,0.353226]
[1722124725180,0.11773,67952.0,67946.0,0.117739]
[1722124725526,0.588745,67941.0,67940.0,0.00395718]
[1722124725726,0.96581854,67941.0,67940.0,0.00395718]
[1722124726006,1.20548883,67941.0,67940.0,0.00395718]
[1722124726649,0.99309275,67941.0,67940.0,0.00395718]
[1722124727000,0.96999083,67941.0,67940.0,0.00395718]
[1722124727205,1.20704303,67941.0,67940.0,0.00395718]
[1722124727412,0.96999083,67941.0,67940.0,0.00395718]
[1722124727797,1.10099064,67941.0,67940.0,0.00395718]
[1722124727991,0.97086386,67941.0,67940.0,0.00395718]
[1722124728226,1.20636186,67941.0,67940.0,0.00395718]
[1722124728377,1.20639069,67941.0,67940.0,0.00395718]
[1722124729031,1.2044291,67941.0,67940.0,0.00395718]
[1722124729792,1.24772442,67941.0,67940.0,0.00395718]
[1722124729994,1.22753691,67941.0,67940.0,0.00395718]
[1722124730690,1.27083223,67941.0,67940.0,0.00395718]
[1722124730928,0.86968835,67941.0,67940.0,0.00395718]
[1722124731356,0.99203606,67941.0,67940.0,0.00395718]
[1722124732064,0.9689342,67941.0,67940.0,0.00395718]
[1722124732318,1.2044322,67941.0,67940.0,0.00395718]
[1722124732774,0.9689342,67941.0,67940.0,0.00395718]
[1722124733470,1.01980422,67941.0,67940.0,0.00395718]
[1722124734193,0.84658649,67941.0,67940.0,0.00395718]
[1722124734427,1.25530941,67941.0,67940.0,0.00395718]
[1722124734661,0.43106484,67941.0,67940.0,0.00395718]
[1722124734899,0.73343529,67941.0,67940.0,0.00395718]